Workbook

Sheet Лист1
A1: Школа | F1: Утвердил: | G1: должность
A2: Типовое примерное меню приготавливаемых блюд | G2: фамилия
A3: Возрастная категория | E3: 7-11 лет | G3: дата | I3: Декабрь | J3: 2024
H4: день | I4: месяц | J4: год
A5: Неделя | B5: День недели | C5: Прием пищи | D5: Раздел меню | E5: Блюда | F5: Вес блюда, г | G5: Белки | H5: Жиры | I5: Углеводы | J5: Калорийность | K5: № рецептуры | L5: Цена
A6: 1 | B6: 1 | C6: Завтрак | D6: гор.блюдо | E6: Тефтели из говядины в соусе томатном | F6: 90 | G6: 12.790 | H6: 13.930 | I6: 11.730 | J6: 223 | K6: ТТК от 09.07.2023
D7: гор.блюдо | E7: Каша рисовая вязкая | F7: 150 | G7: 2.303 | H7: 4.129 | I7: 23.944 | J7: 142 | K7: № 304/2015г Дели
D8: гор.напиток | E8: Чай с сахаром | F8: 208 | G8: 0.021 | H8: 0.005 | I8: 7.989 | J8: 32 | K8: ТТК от 2021г
D9: хлеб | E9: Хлеб ржано-пшеничный/ Хлеб пшеничный | F9: 40 | G9: 2.520 | H9: 0.360 | I9: 18.840 | J9: 91
D10: фрукты | E10: Плоды и ягоды свежие (яблоки) | F10: 120 | G10: 0.480 | H10: 0.480 | I10: 11.760 | J10: 56 | K10: № 338
D13: итого | F13: =SUM(F6:F12) -> 608 | G13: =SUM(G6:G12) -> 18.114 | H13: =SUM(H6:H12) -> 18.904 | I13: 74.263 | J13: 544 | L13: 66.8
A14: =A6 -> 1 | B14: =B6 -> 1 | C14: Обед | D14: закуска
D15: 1 блюдо
D16: 2 блюдо
D17: гарнир
D18: напиток
D19: хлеб бел.
D20: хлеб черн.
D23: итого | F23: =SUM(F14:F22) -> 0 | G23: =SUM(G14:G22) -> 0 | H23: 0 | I23: 0 | J23: 0 | L23: =SUM(L14:L22) -> 0
A24: =A6 -> 1 | B24: =B6 -> 1 | C24: Итого за день: | F24: =F13+F23 -> 608 | G24: =G13+G23 -> 18.114 | H24: 18.904 | I24: 74.263 | J24: 544 | L24: =L13+L23 -> 66.8
A25: 1 | B25: 2 | C25: Завтрак | D25: гор.блюдо | E25: Жаркое из филе куриных грудок | F25: 200 | G25: 12.890 | H25: 15.910 | I25: 35.790 | J25: 341 | K25: ТТК №2738 от 7.12.2023
D26: гор.блюдо
D27: гор.напиток | E27: Чай с сахаром | F27: 208 | G27: 0.021 | H27: 0.005 | I27: 7.989 | J27: 32 | K27: ТТК от 2021г
D28: хлеб | E28: Хлеб ржано-пшеничный/ Хлеб пшеничный | F28: 40 | G28: 2.52 | H28: 0.36 | I28: 18.84 | J28: 91
D30: фрукты
E31: Салат из белокачанной капусты | F31: 60 | G31: 0.931 | H31: 3.051 | I31: 5.645 | J31: 54 | K31: № 45/2015г Дели
D33: итого | F33: =SUM(F25:F32) -> 508 | G33: 16.362 | H33: 19.326 | I33: =SUM(I25:I32) -> 68.264 | J33: 518 | L33: 66.8
A34: =A25 -> 1 | B34: =B25 -> 2 | C34: Обед | D34: закуска
D35: 1 блюдо
D36: 2 блюдо
D37: гарнир
D38: напиток
D39: хлеб бел.
D40: хлеб черн.
D43: итого | F43: =SUM(F34:F42) -> 0 | G43: =SUM(G34:G42) -> 0 | H43: 0 | I43: 0 | J43: 0 | L43: =SUM(L34:L42) -> 0
A44: =A25 -> 1 | B44: =B25 -> 2 | C44: Итого за день: | F44: =F33+F43 -> 508 | G44: =G33+G43 -> 16.362 | H44: 19.326 | I44: 68.264 | J44: 518 | L44: =L33+L43 -> 66.8
A45: 1 | B45: 3 | C45: Завтрак | D45: гор.блюдо | E45: Чикен | F45: 90 | G45: 11.103 | H45: 10.108 | I45: 11.093 | J45: 176 | K45: ТТК № 2213 от 02.12.2022
D46: гор.блюдо | E46: Макаронные изделия отварные | F46: 150 | G46: 5.044 | H46: 4.068 | I46: 35.906 | J46: 200 | K46: №202/2015г Дели
D47: гор.напиток | E47: Компот из свежих плодов (яблоки) | F47: 200 | G47: 0.08 | H47: 0.08 | I47: 11.94 | J47: 49 | K47: ТТК 2021г
D48: хлеб | E48: Хлеб ржано-пшеничный/ Хлеб пшеничный | F48: 40 | G48: 2.52 | H48: 0.36 | I48: 18.84 | J48: 91
D49: фрукты
E50: Салат из свеклы отварной (с маслом) | F50: 60 | G50: 1.33 | H50: 1.36 | I50: 1.14 | J50: 22 | K50: №52/2015г Дели
D52: итого | F52: =SUM(F45:F51) -> 540 | G52: =SUM(G45:G51) -> 20.077 | H52: 15.976 | I52: 78.919 | J52: 538 | L52: 66.8
A53: =A45 -> 1 | B53: =B45 -> 3 | C53: Обед | D53: закуска
D54: 1 блюдо
D55: 2 блюдо
D56: гарнир
D57: напиток
D58: хлеб бел.
D59: хлеб черн.
D62: итого | F62: =SUM(F53:F61) -> 0 | G62: =SUM(G53:G61) -> 0 | H62: 0 | I62: 0 | J62: 0 | L62: =SUM(L53:L61) -> 0
A63: =A45 -> 1 | B63: =B45 -> 3 | C63: Итого за день: | F63: =F52+F62 -> 540 | G63: =G52+G62 -> 20.077 | H63: 15.976 | I63: 78.919 | J63: 538 | L63: =L52+L62 -> 66.8
A64: 1 | B64: 4 | C64: Завтрак | D64: гор.блюдо | E64: Плов с говядиной | F64: 200 | G64: 15.44 | H64: 19.29 | I64: 51.2 | J64: 430 | K64: ТТК № 2737 от 07.12.2023
D65: гор.блюдо
D66: гор.напиток | E66: Чай с сахаром | F66: 208 | G66: 0.021 | H66: 0.005 | I66: 7.989 | J66: 32 | K66: ТТК от 2021г
D67: хлеб | E67: Хлеб ржано-пшеничный/ Хлеб пшеничный | F67: 40 | G67: 2.52 | H67: 0.36 | I67: 18.84 | J67: 91
D68: фрукты
E69: Салат из моркови | F69: 60 | G69: 2.06 | H69: 0.12 | I69: 2.28 | J69: 14 | K69: ТТК
D71: итого | F71: =SUM(F64:F70) -> 508 | G71: =SUM(G64:G70) -> 20.041 | H71: =SUM(H64:H70) -> 19.775 | I71: 80.309 | J71: =SUM(J64:J70) -> 567 | L71: 66.8
A72: =A64 -> 1 | B72: =B64 -> 4 | C72: Обед | D72: закуска
D73: 1 блюдо
D74: 2 блюдо
D75: гарнир
D76: напиток
D77: хлеб бел.
D78: хлеб черн.
D81: итого | F81: =SUM(F72:F80) -> 0 | G81: =SUM(G72:G80) -> 0 | H81: 0 | I81: 0 | J81: 0 | L81: =SUM(L72:L80) -> 0
A82: =A64 -> 1 | B82: =B64 -> 4 | C82: Итого за день: | F82: =F71+F81 -> 508 | G82: =G71+G81 -> 20.041 | H82: 19.775 | I82: 80.309 | J82: 567 | L82: =L71+L81 -> 66.8
A83: 1 | B83: 5 | C83: Завтрак | D83: гор.блюдо | E83: Биточки рыбные из минтая | F83: 90 | G83: 12.06 | H83: 15.31 | I83: 15.92 | J83: 238 | K83: ТТК №1515 от 28.07.2021
D84: гор.блюдо | E84: Пюре картофельное | F84: 150 | G84: 3.437 | H84: 4.556 | I84: 21.451 | J84: 144 | K84: 21.09.2020
D85: гор.напиток | E85: Напиток из урюка | F85: 200 | G85: 0.02 | I85: 7.99 | J85: 32 | K85: ТТК № 2693 от 14.09.2023
D86: хлеб | E86: Хлеб ржано-пшеничный/ Хлеб пшеничный | F86: 40 | G86: 2.52 | H86: 0.36 | I86: 18.84 | J86: 91
D87: фрукты
E88: Салат из квашеной капусты | F88: 60 | G88: 0.42 | H88: 0.06 | I88: 1.14 | J88: 7 | K88: №47/2015 Дели
D90: итого | F90: =SUM(F83:F89) -> 540 | G90: =SUM(G83:G89) -> 18.457 | H90: 20.286 | I90: 65.341 | J90: 512 | L90: 66.8
A91: =A83 -> 1 | B91: =B83 -> 5 | C91: Обед | D91: закуска
D92: 1 блюдо
D93: 2 блюдо
D94: гарнир
D95: напиток
D96: хлеб бел.
D97: хлеб черн.
D100: итого | F100: =SUM(F91:F99) -> 0 | G100: =SUM(G91:G99) -> 0 | H100: 0 | I100: 0 | J100: 0 | L100: =SUM(L91:L99) -> 0
A101: =A83 -> 1 | B101: =B83 -> 5 | C101: Итого за день: | F101: =F90+F100 -> 540 | G101: =G90+G100 -> 18.457 | H101: 20.286 | I101: 65.341 | J101: 512 | L101: =L90+L100 -> 66.8
A102: 1 | B102: 6 | C102: Завтрак | D102: гор.блюдо | E102: Пельмени "Для умников и умниц" отварные с маслом | F102: 155 | G102: 17.047 | H102: 14.236 | I102: 36.838 | J102: 344 | K102: ТТК 2015г
D104: гор.напиток | E104: Чай с сахаром | F104: 208 | G104: 0.02 | H104: 0.005 | I104: 7.989 | J104: 32 | K104: ТТК от 2021г
D105: хлеб | E105: Хлеб ржано-пшеничный/ Хлеб пшеничный | F105: 40 | G105: 2.52 | H105: 0.36 | I105: 18.84 | J105: 91
D106: фрукты | E106: Плоды и ягоды свежие (яблоки) | F106: 120 | G106: 0.48 | H106: 0.48 | I106: 11.76 | J106: 56 | K106: №338
D109: итого | F109: =SUM(F102:F108) -> 523 | G109: 20.068 | H109: 15.081 | I109: =SUM(I102:I108) -> 75.427 | J109: 523 | L109: 66.8
A110: =A102 -> 1 | B110: 6 | C110: Обед | D110: закуска
D111: 1 блюдо
D112: 2 блюдо
D113: гарнир
D114: напиток
D115: хлеб бел.
D116: хлеб черн.
D119: итого | F119: =SUM(F110:F118) -> 0 | G119: =SUM(G110:G118) -> 0 | H119: 0 | I119: 0 | J119: 0 | L119: =SUM(L110:L118) -> 0
A120: =A102 -> 1 | B120: =B102 -> 6 | C120: Итого за день: | F120: =F109+F119 -> 523 | G120: =G109+G119 -> 20.068 | H120: 15.081 | I120: 75.427 | J120: 523 | L120: =L109+L119 -> 66.8
A121: 2 | B121: 1 | C121: Завтрак | D121: гор.блюдо | E121: Котлеты аппетитные запеченные | F121: 90 | G121: 10.010 | H121: 12.700 | I121: 10.980 | J121: 198 | K121: ТТК от 01.11.2022
D122: гор.блюдо | E122: Каша гречневая вязкая | F122: 150 | G122: 3.462 | H122: 4.634 | I122: 21.786 | J122: 143 | K122: ТТК 2014г
D123: гор.блюдо | E123: Суп картофельный | F123: 200 | G123: 5.550 | H123: 4.750 | I123: 35.450 | J123: 207 | K123: №97/2015г
D124: гор.напиток | E124: Чай с сахаром | F124: 208 | G124: 0.021 | H124: 0.005 | I124: 7.989 | J124: 32 | K124: ТТК от 2021г
D125: хлеб | E125: Хлеб ржано-пшеничный/ Хлеб пшеничный | F125: 40 | G125: 2.520 | H125: 0.360 | I125: 18.840 | J125: 91
D127: закуска | E127: Салат из квашеной капусты | F127: 60 | G127: 0.42 | H127: 0.06 | I127: 1.14 | J127: 7 | K127: ТТК2020г.
D129: итого | F129: 748 | G129: =SUM(G121:G128) -> 21.983 | H129: =SUM(H121:H128) -> 22.509 | I129: 96.185 | J129: 678 | L129: 66.8
A130: =A121 -> 2 | B130: =B121 -> 1 | C130: Обед | D130: закуска
D131: 1 блюдо
D132: 2 блюдо
D133: гарнир
D134: напиток
D135: хлеб бел.
D136: хлеб черн.
D139: итого | F139: =SUM(F130:F138) -> 0 | G139: =SUM(G130:G138) -> 0 | H139: 0 | I139: 0 | J139: 0 | L139: =SUM(L130:L138) -> 0
A140: =A121 -> 2 | B140: =B121 -> 1 | C140: Итого за день: | F140: =F129+F139 -> 748 | G140: =G129+G139 -> 21.983 | H140: 22.509 | I140: 96.185 | J140: 678 | L140: =L129+L139 -> 66.8
A141: 2 | B141: 2 | C141: Завтрак | D141: гор.блюдо | E141: Жаркое по - домашнему | F141: 200 | G141: 12.05 | H141: 17.93 | I141: 39.88 | J141: 370 | K141: ТТК №2738 от 07.12.2023г2023г
D142: гор.блюдо | E142: Щи из свежей капусты с картофелем | F142: 200 | G142: 6.44 | H142: 4.1 | I142: 30.152 | J142: 183 | K142: №88/2015г
D144: гор.напиток | E144: Чай с сахаром | F144: 208 | G144: 0.021 | H144: 0.005 | I144: 7.989 | J144: 32 | K144: ТТК от 2021г Дели
D145: хлеб | E145: Хлеб ржано-пшеничный/ Хлеб пшеничный | F145: 40 | G145: 2.52 | H145: 0.36 | I145: 18.84 | J145: 91
D146: фрукты
E147: Салат из моркови | F147: 60 | G147: 2.06 | H147: 0.12 | I147: 2.28 | J147: 14 | K147: ТТК
D149: итого | F149: 708 | G149: =SUM(G141:G148) -> 23.091 | H149: =SUM(H141:H148) -> 22.515 | I149: =SUM(I141:I148) -> 99.141 | J149: =SUM(J141:J148) -> 690 | L149: 66.8
A150: =A141 -> 2 | B150: =B141 -> 2 | C150: Обед | D150: закуска
D151: 1 блюдо
D152: 2 блюдо
D153: гарнир
D154: напиток
D155: хлеб бел.
D156: хлеб черн.
D159: итого | F159: =SUM(F150:F158) -> 0 | G159: =SUM(G150:G158) -> 0 | H159: 0 | I159: 0 | J159: 0 | L159: =SUM(L150:L158) -> 0
A160: =A141 -> 2 | B160: =B141 -> 2 | C160: Итого за день: | F160: =F149+F159 -> 708 | G160: =G149+G159 -> 23.091 | H160: 22.515 | I160: 99.141 | J160: 690 | L160: =L149+L159 -> 66.8
A161: 2 | B161: 3 | C161: Завтрак | D161: гор.блюдо | E161: Бифштекс рубленый по-домашнему | F161: 90 | G161: 10.69 | H161: 12.037 | I161: 8.367 | J161: 184 | K161: ТТК от 01.11.2022
D162: гор.блюдо | E162: Макаронные изделия отварные | F162: 150 | G162: 5.044 | H162: 4.068 | I162: 35.906 | J162: 200 | K162: № 202/2015 Дели
D163: гор.блюдо | E163: Рассольник Ленинградский | F163: 200 | G163: 3.301 | H163: 7.39 | I163: 30.4 | J163: 201 | K163: №96/2015г
D164: гор.напиток | E164: Чай с сахаром | F164: 208 | G164: 0.021 | H164: 0.005 | I164: 7.989 | J164: 32 | K164: ТТК от 2021г
D165: хлеб | E165: Хлеб ржано-пшеничный/ Хлеб пшеничный | F165: 40 | G165: 2.52 | H165: 0.36 | I165: 18.84 | J165: 91
D166: фрукты
E167: Салат из свеклы отварной (с маслом) | F167: 60 | G167: 1.33 | H167: 1.36 | I167: 1.14 | J167: 22 | K167: №52/2015 Дели
D169: итого | F169: 731 | G169: =SUM(G161:G168) -> 22.906 | H169: 25.02 | I169: =SUM(I161:I168) -> 102.642 | J169: 731 | L169: 66.8
A170: =A161 -> 2 | B170: =B161 -> 3 | C170: Обед | D170: закуска
D171: 1 блюдо
D172: 2 блюдо
D173: гарнир
D174: напиток
D175: хлеб бел.
D176: хлеб черн.
D179: итого | F179: =SUM(F170:F178) -> 0 | G179: =SUM(G170:G178) -> 0 | H179: 0 | I179: 0 | J179: 0 | L179: =SUM(L170:L178) -> 0
A180: =A161 -> 2 | B180: =B161 -> 3 | C180: Итого за день: | F180: =F169+F179 -> 731 | G180: =G169+G179 -> 22.906 | H180: 25.02 | I180: 102.642 | J180: 731 | L180: =L169+L179 -> 66.8
A181: 2 | B181: 4 | C181: Завтрак | D181: гор.блюдо | E181: Плов с куриными грудками | F181: 200 | G181: 15.448 | H181: 19.298 | I181: 45.883 | J181: 419 | K181: ТТК 2021г Июль
D182: гор.блюдо | E182: Борщ с капустой и картофелем | F182: 200 | G182: 3.56 | H182: 3.13 | I182: 30.24 | J182: 163 | K182: №82/2015г
D183: гор.напиток | E183: Чай с сахаром | F183: 200 | G183: 0.021 | H183: 0.05 | I183: 7.989 | J183: 32 | K183: ТТК 2021г
D184: хлеб | E184: Хлеб ржано-пшеничный/ Хлеб пшеничный | F184: 40 | G184: 2.52 | H184: 0.36 | I184: 18.84 | J184: 91
D185: фрукты
E186: Салат из квашеной капусты | F186: 60 | G186: 0.42 | H186: 0.06 | I186: 1.14 | J186: 7 | K186: ТТК2020г.
D188: итого | F188: 708 | G188: 21.969 | H188: 22.693 | I188: 104.092 | J188: =J181+J182+J183+J184+J185+J186 -> 712 | L188: 66.8
A189: =A181 -> 2 | B189: =B181 -> 4 | C189: Обед | D189: закуска
D190: 1 блюдо
D191: 2 блюдо
D192: гарнир
D193: напиток
D194: хлеб бел.
D195: хлеб черн.
D198: итого | F198: =SUM(F189:F197) -> 0 | G198: =SUM(G189:G197) -> 0 | H198: 0 | I198: 0 | J198: 0 | L198: =SUM(L189:L197) -> 0
A199: =A181 -> 2 | B199: =B181 -> 4 | C199: Итого за день: | L199: =L188+L198 -> 66.8
A200: 2 | B200: 5 | C200: Завтрак | D200: гор.блюдо | E200: Ежики рыбные с рисом в томатном соусе | F200: 90 | G200: 10.25 | H200: 8.16 | I200: 21.21 | J200: 199 | K200: ТТК от 2024
D201: гор.блюдо | E201: Пюре картофельное | F201: 150 | G201: 3.437 | H201: 4.556 | I201: 21.451 | J201: 144 | K201: №312/2015 Дели
D202: гор.напиток | E202: Компот из свежих плодов (яблоки) | F202: 200 | G202: 0.08 | H202: 0.08 | I202: 11.94 | J202: 49 | K202: ТТК 2021
D203: хлеб | E203: Хлеб ржано-пшеничный/ Хлеб пшеничный | F203: 40 | G203: 2.52 | H203: 0.36 | I203: 18.84 | J203: 91
D204: фрукты
E205: Салат из белокачанной капусты | F205: 60 | G205: 0.931 | H205: 3.051 | I205: 5.645 | J205: 54 | K205: №45/2015 Дели
D207: итого | F207: =SUM(F200:F206) -> 540 | G207: =SUM(G200:G206) -> 17.218 | H207: 16.207 | I207: 79.086 | J207: 537 | L207: 66.8
A208: =A200 -> 2 | B208: =B200 -> 5 | C208: Обед | D208: закуска
D209: 1 блюдо
D210: 2 блюдо
D211: гарнир
D212: напиток
D213: хлеб бел.
D214: хлеб черн.
D217: итого | F217: =SUM(F208:F216) -> 0 | G217: =SUM(G208:G216) -> 0 | H217: 0 | I217: 0 | J217: 0 | L217: =SUM(L208:L216) -> 0
A218: =A200 -> 2 | B218: =B200 -> 5 | C218: Итого за день: | F218: =F207+F217 -> 540 | G218: =G207+G217 -> 17.218 | H218: 16.207 | I218: 79.086 | J218: 537 | L218: =L207+L217 -> 66.8
A219: 2 | B219: 6 | C219: Завтрак | D219: гор.блюдо | E219: Сосиски отварные | F219: 100 | G219: 11.4 | H219: 15.71 | I219: 8.8 | J219: 222 | K219: №243/2015 Дели
D220: гор.блюдо | E220: Макаронные изделия отварные | F220: 150 | G220: 5.044 | H220: 4.068 | I220: 35.906 | J220: 200 | K220: №202/2015 Дели
D221: гор.напиток | E221: Чай с сахаром | F221: 208 | G221: 0.021 | H221: 0.005 | I221: 7.989 | J221: 32 | K221: ТТК от 2021г
D222: хлеб | E222: Хлеб ржано-пшеничный/ Хлеб пшеничный | F222: 40 | G222: 2.52 | H222: 0.36 | I222: 18.84 | J222: 91
D223: фрукты | E223: Плоды и ягоды свежие (яблоки) | F223: 120 | G223: 0.48 | H223: 0.48 | I223: 11.76 | J223: 56 | K223: № 338
D226: итого | F226: =SUM(F219:F225) -> 618 | G226: =SUM(G219:G225) -> 19.465 | H226: 20.623 | I226: =SUM(I219:I225) -> 83.295 | J226: 602 | L226: 66.8
A227: =A219 -> 2 | B227: 6 | C227: Обед | D227: закуска
D228: 1 блюдо
D229: 2 блюдо
D230: гарнир
D231: напиток
D232: хлеб бел.
D233: хлеб черн.
D236: итого | F236: =SUM(F227:F235) -> 0 | G236: =SUM(G227:G235) -> 0 | H236: 0 | I236: 0 | J236: 0 | L236: =SUM(L227:L235) -> 0
A237: =A219 -> 2 | B237: =B219 -> 6 | C237: Итого за день: | F237: =F226+F236 -> 618 | G237: =G226+G236 -> 19.465 | H237: 20.623 | I237: 83.295 | J237: 602 | L237: =L226+L236 -> 66.8
